Cogmind - Beta 15 @@@ ROGUE MODE // 2025.09.20 @ 02:52:23 Player: shapeshifter Result: Destroyed by NK-0LA with NK-0LA's Tesla Doomcannon Performance ------------- Evolutions (1) 500 Regions Visited (6) 1200 Robots Destroyed (47) 235 Value Destroyed (836) 836 Prototype IDs (28) 560 Alien Tech Used (0) 0 Bonus (300) 300 TOTAL SCORE: 3631 Bonus ------- Aligned with FarCom 300 Cogmind --------- Core Integrity 0/400 Matter 36/300 Energy 83/100 System Corruption 20% Temperature Cool (0) Movement Walking (420) Ox4 Location -8/Mines Parts ------- > --- POWER (1) -------- (None) > --- PROPULSION (3) --- Makeshift Leg > --- UTILITY (3) ------ Huge Storage Unit > --- WEAPON (2) ------- Heavy Assault Rifle Improved Assault Rifle > --- INVENTORY (25) --- Light Neutrino Core Reinforced Fission Core Cooling System Lightpack 2.0 Medium Matter Pod (0) Medium Matter Pod (0) Medium Matter Pod (0) 0b10 Alert Chip Makeshift Salvage Targeting Computer Advanced Launcher Guidance Computer Advanced Weapon Cycler Advanced Transmission Jammer Hacking Suite Advanced Component Analysis Suite Supersonic Drone Bay (1/1) Mini Grenade Launcher Mini Grenade Launcher Deploy-a-Sentry Peak State ------------ > --- POWER ------------ Cold Fusion Reactor > --- PROPULSION ------- Light Treads Light Treads Improved Treads > --- UTILITY ---------- Huge Storage Unit Core Shielding Medium Armor Plating > --- WEAPON ----------- Improved Assault Rifle 8R-AWN's Boregun > --- INVENTORY -------- Light Neutrino Core Reinforced Fission Core Makeshift Leg Makeshift Leg Cooling System Lightpack 2.0 Medium Matter Pod Medium Matter Pod Medium Matter Pod 0b10 Alert Chip Makeshift Salvage Targeting Computer Advanced Launcher Guidance Computer Advanced Weapon Cycler Advanced Transmission Jammer Hacking Suite Advanced Component Analysis Suite Supersonic Drone Bay Heavy Assault Rifle Improved Assault Rifle Improved Assault Rifle Mini Grenade Launcher Mini Grenade Launcher Deploy-a-Sentry [Rating: 39] Favorites ----------- Power Ion Engine Engine Ion Engine Power Core Light Neutrino Core Reactor Cold Fusion Reactor Propulsion Improved Treads Treads Improved Treads Leg Makeshift Leg Wheel Compact Wheel Utility Huge Storage Unit Device Heat Sink Storage Huge Storage Unit Protection Core Shielding Weapon Improved Assault Rifle Energy Gun Heavy EM Pulse Gun Ballistic Gun Improved Assault Rifle Launcher Mini Grenade Launcher Build | -11 -10 -10 -9 -9 -9 -8 ------- Run | Yrd Mat Min Mat Min Exi Min Slots Evolved 2 | . . . 2 . . . Power . | . . . . . . . Propulsion 1 | . . . 1 . . . Utility 1 | . . . 1 . . . Weapon . | . . . . . . . Parts Attached 54 | 7 10 1 11 6 15 4 Power 9 | 1 1 . 3 1 3 . Engine 7 | 1 1 . 3 1 1 . Core 1 | . . . . . 1 . Reactor 1 | . . . . . 1 . Propulsion 15 | 2 4 . 2 2 3 2 Treads 11 | 2 2 . 2 2 3 . Leg 2 | . . . . . . 2 Wheel 2 | . 2 . . . . . Hover . | . . . . . . . Flight . | . . . . . . . Utility 14 | 2 . 1 3 3 5 . Device 3 | 1 . 1 1 . . . Storage 4 | 1 . . 1 . 2 . Processor . | . . . . . . . Hackware . | . . . . . . . Protection 7 | . . . 1 3 3 . Artifact . | . . . . . . . Weapon 16 | 2 5 . 3 . 4 2 Energy Gun 7 | 1 5 . 1 . . . Energy Cannon . | . . . . . . . Ballistic Gun 8 | 1 . . 2 . 3 2 Ballistic Cannon . | . . . . . . . Launcher 1 | . . . . . 1 . Special Weapon . | . . . . . . . Impact Weapon . | . . . . . . . Slashing Weapon . | . . . . . . . Piercing Weapon . | . . . . . . . Special Melee Weapon . | . . . . . . . Unidentified Prototypes 5 | . . . 2 . 3 . Parts Lost 30 | . 6 . 3 3 8 10 Power 4 | . 1 . . 1 1 1 Propulsion 8 | . 1 . . 1 2 4 Utility 8 | . 1 . 1 1 3 2 Weapon 10 | . 3 . 2 . 2 3 Highest Loss Streak 10 | . 6 . 3 3 7 10 To Critical Strikes 1 | . . . . . 1 . Average Backups 16 | 4 7 8 10 21 21 21 Power 1 | . . . 1 1 2 2 Propulsion 2 | 2 3 3 1 3 1 1 Utility 5 | . 1 1 1 7 9 13 Weapon 6 | 1 1 4 5 9 8 4 Tool/Special . | . . . . . . . Unused Backups 27 | . 2 . 3 . 7 15 Power 4 | . . . . . 3 1 Propulsion 2 | . 2 . . . . . Utility 14 | . . . . . 1 13 Weapon 7 | . . . 3 . 3 1 Tool/Special . | . . . . . . . Average Slot Usage (%) 93 | . 89 89 96 100 90 88 Engine 9 | . 13 14 8 11 8 . Treads 31 | . 16 28 32 33 33 28 Device 4 | . 6 4 12 4 . . Storage 11 | . 14 14 11 11 11 11 Protection 14 | . . . 9 17 22 16 Energy Gun 3 | . 19 28 2 . . . Ballistic Gun 14 | . 8 . 18 22 13 20 Peak Build Rating 39 | 7 11 12 18 18 39 39 Average Rating 17 | 4 8 11 15 17 21 35 On Entrance 14 | . 7 11 12 18 12 39 Naked Turns . | . . . . . . . Heaviest Build 109 | 14 16 17 95 99 109 109 Greatest Support 69 | 40 46 46 69 66 63 63 Greatest Overweight (x) 1 | . . . 1 1 1 1 Average Overweight (x) . | . . . . 1 1 1 Largest Inventory Capacity 25 | 8 8 8 25 25 25 25 Average Capacity 21 | 7 8 8 21 25 25 25 Most Carried 25 | 8 8 8 23 24 25 25 Average Carried 16 | 4 7 8 10 21 22 24 Final Capacity 25 | 8 8 8 25 25 25 25 Final Carried 25 | 7 8 8 23 21 25 20 Class Distribution -------------------- 86% | Mutant 13% | Scavenger-Mutant Dominant Class ---------------- Mutant | -10/Materials Mutant | -10/Mines Mutant | -9/Materials Mutant | -9/Mines Mutant | -9/Exiles Scavenger-Mutant | -8/Mines Resources | -11 -10 -10 -9 -9 -9 -8 ----------- Run | Yrd Mat Min Mat Min Exi Min Matter Collected 1826 | 275 93 10 383 185 880 . Remotely . | . . . . . . . Salvage Created 1620 | 101 233 162 492 148 484 . Parts 133 | 6 17 8 33 16 53 . Haulers Intercepted 2 | . 1 . 1 . . . Recyclers Shooed . | . . . . . . . Parts Field Recycled . | . . . . . . . Retrieved Matter . | . . . . . . . Parts Self-Destructed . | . . . . . . . Prevented . | . . . . . . . Kills | -11 -10 -10 -9 -9 -9 -8 ------- Run | Yrd Mat Min Mat Min Exi Min Combat Hostiles Destroyed 32 | . 5 5 11 6 5 . Guns 28 | . 5 4 11 6 2 . AOE 3 | . . . . . 3 . Classes Destroyed 13 | 2 4 . 3 1 3 . Worker 1 | . 1 . . . . . Tunneler 1 | 1 . . . . . . Hauler 2 | . 1 . 1 . . . Recycler 1 | 1 . . . . . . Operator 1 | . . . 1 . . . Turret 1 | . . . . . 1 . Watcher 2 | . . . 2 . . . Swarmer 14 | . 3 3 5 3 . . Grunt 7 | . 2 2 1 2 . . Duelist 1 | . . . . 1 . . Sentry 5 | . . . 5 . . . Zionite 8 | . . . . . 8 . Assembled 4 | . . . . . 4 . Best Kill Streak 8 | 1 2 3 8 3 6 . Combat Bots Only 8 | . 2 3 8 3 3 . Max Kills in Single Turn 2 | 1 2 1 1 2 1 . Gunslinging 1 | . 1 . . 1 . . Exploded 1 | . . . . . 1 . Melee . | . . . . . . . Uniques/NPCs Destroyed 4 | . . . . . 4 . 8R-AWN (-9/Exiles) EX-HEX (-9/Exiles) EX-BIN (-9/Exiles) EX-DEC (-9/Exiles) Combat | -11 -10 -10 -9 -9 -9 -8 -------- Run | Yrd Mat Min Mat Min Exi Min Hostile Shots Fired 385 | . 96 21 62 26 104 76 Missed 95 | . 26 8 13 5 15 28 Hits 290 | . 70 13 49 21 89 48 Melee 2 | . . . . 2 . . Projectile 288 | . 70 13 49 19 89 48 AOE 8 | . . . . 8 . . Critical Strikes 42 | . 4 . 1 . 35 2 Actively Blocked 4 | . . . . . 4 . Part Disruptions 1 | . . . . . . 1 Damage Taken 4542 | . 677 128 685 518 1435 1099 Core 645 | . 216 8 72 68 113 168 Absorbed by Shields . | . . . . . . . Redirected to Shielding 42 | . . . . 13 25 4 Core Remaining (%) 55 | 100 . 10 . . . . Volleys Fired 235 | 5 40 11 42 17 108 12 Largest 2 | 2 2 2 2 2 2 2 Hottest 95 | 70 95 90 90 46 46 53 Shots Fired 427 | 10 63 22 75 35 200 22 Gun 413 | 10 63 22 75 35 186 22 Cannon . | . . . . . . . Launcher 14 | . . . . . 14 . Special . | . . . . . . . Kinetic 336 | 5 23 . 65 35 186 22 Thermal 30 | 5 25 . . . . . Explosive 14 | . . . . . 14 . Electromagnetic 47 | . 15 22 10 . . . Robot Hit Streak 40 | 3 6 5 23 10 40 10 Robot Miss Streak 4 | 2 4 4 3 4 3 3 Penetration Max . | . . . . . . . Secondary Targets 8 | . 1 1 4 2 . . Max Gunslinging Chain 1 | . 1 1 1 1 . . Shots Hit Robots 286 | 6 36 14 55 22 139 14 Core Hits 99 | 3 13 5 20 10 48 . Critical Kills 2 | . . . 2 . . . Critical Parts Destroyed 1 | . . . . . 1 . Critical Strikes 3 | . . . 2 . 1 . Destroy 3 | . . . 2 . 1 . Melee Attacks . | . . . . . . . Impact . | . . . . . . . Slashing . | . . . . . . . Piercing . | . . . . . . . Sneak Attacks . | . . . . . . . Combat Hostiles . | . . . . . . . Follow-up Attacks . | . . . . . . . Damage Inflicted 4700 | 64 413 215 833 342 2623 210 Guns 4186 | 64 413 215 830 342 2112 210 Cannons . | . . . . . . . Explosions 511 | . . . . . 511 . Melee . | . . . . . . . Ramming 3 | . . . 3 . . . Kinetic 3528 | 16 110 . 738 342 2112 210 Thermal 232 | 48 184 . . . . . Explosive 511 | . . . . . 511 . Electromagnetic 426 | . 119 215 92 . . . Impact . | . . . . . . . Slashing . | . . . . . . . Piercing . | . . . . . . . Highest Corruption 19 | . . . 4 4 6 19 Average Corruption 4 | . . . 4 4 4 8 Corruption Purged . | . . . . . . . Corruption Blocked . | . . . . . . . Effects 99 | . . . 31 15 47 6 Message Errors 16 | . . . 5 2 8 1 Matter Fused 22 | . . . 9 3 9 1 Heat Flow Errors 7 | . . . 5 . 2 . Energy Discharges 10 | . . . 2 1 7 . Parts Fused 2 | . . . 2 . . . Data Loss (minor) 17 | . . . 3 5 7 2 Data Loss (major) 10 | . . . 1 3 6 . Misfires 4 | . . . 1 1 2 . Alerts 4 | . . . 2 . 2 . Weapon Failures 7 | . . . 1 . 4 2 Overload Shots . | . . . . . . . Overflow Damage 4 | . . . . . 4 . Projectiles . | . . . . . . . Explosions 4 | . . . . . 4 . Melee . | . . . . . . . Knockbacks . | . . . . . . . Impact . | . . . . . . . Kinetic . | . . . . . . . Secondary . | . . . . . . . Self-Inflicted Damage . | . . . . . . . Shots . | . . . . . . . Rammed 3 | . . . 3 . . . Targets Rammed 3 | . . . 3 . . . Kicked . | . . . . . . . Crushed . | . . . . . . . Highest Temperature 289 | 50 213 213 234 12 289 . Average Temperature 69 | 23 66 84 79 5 85 . Received Heat Transfer 468 | . 183 33 228 24 . . Effects 2 | . 2 . . . . . Interference 2 | . 2 . . . . . Siege Activations . | . . . . . . . Martial Activations . | . . . . . . . Shielding Activations . | . . . . . . . Robots Disrupted . | . . . . . . . Combat Hostiles . | . . . . . . . Robots Corrupted 1 | . . 1 . . . . Combat Hostiles 1 | . . 1 . . . . Parts Fried 2 | . . 2 . . . . Impact Corruptions . | . . . . . . . Robots Melted . | . . . . . . . Combat Hostiles . | . . . . . . . Parts Melted 2 | . 2 . . . . . Heat Transferred 703 | 148 555 . . . . . Parts Sabotaged . | . . . . . . . Parts Stolen . | . . . . . . . Parts Stripped . | . . . . . . . Power Chain Reactions . | . . . . . . . Alert | -11 -10 -10 -9 -9 -9 -8 ------- Run | Yrd Mat Min Mat Min Exi Min Maximum Alert Level 1 | . . . 1 . . . Low Security (%) 97 | 100 100 100 93 100 . 100 Level 1 2 | . . . 6 . . . Level 2 . | . . . . . . . Level 3 . | . . . . . . . Level 4 . | . . . . . . . Level 5 . | . . . . . . . High Security . | . . . . . . . Max Security . | . . . . . . . Peak Influence 221 | 5 50 70 221 120 . 2 Initial 50 | . . . . 50 . . Average 42 | . 11 21 70 26 . . Influence Increases 777 | 10 147 120 357 140 . 3 Destroy 0b10 Robot/C 540 | . 100 100 220 120 . . Destroy 0b10 Robot/NC 40 | 10 10 . 20 . . . Destroy Leader 138 | . 22 20 76 20 . . Successful Hack 26 | . . . 26 . . . Disable Machine 15 | . 15 . . . . . Destroy Structure 3 | . . . . . . 3 Partial Spotted 15 | . . . 15 . . . Influence Decreases 777 | 10 147 120 227 270 . 3 Entered New Map 80 | . . . . 80 . . Time Decay 654 | 10 107 120 227 190 . . Lost Part 43 | . 40 . . . . 3 Squads Dispatched 3 | . 2 . 1 . . . Investigation 1 | . 1 . . . . . Extermination . | . . . . . . . Reinforcement 2 | . 1 . 1 . . . Assault . | . . . . . . . Garrison . | . . . . . . . Intercept . | . . . . . . . Searches Triggered . | . . . . . . . Construction Impeded . | . . . . . . . Haulers Reinforced . | . . . . . . . Active Scanning Responses . | . . . . . . . Cargo Convoy Interrupts . | . . . . . . . Stealth | -11 -10 -10 -9 -9 -9 -8 --------- Run | Yrd Mat Min Mat Min Exi Min Distress Signals 1 | . 1 . . . . . Communications Jammed . | . . . . . . . Distress Signals . | . . . . . . . Times Spotted 64 | . 13 5 16 8 21 1 Peak Tracking Total 10 | . 5 3 6 3 10 1 Tactical Retreats 6 | . . . . . 6 . Traps | -11 -10 -10 -9 -9 -9 -8 ------- Run | Yrd Mat Min Mat Min Exi Min Traps Triggered . | . . . . . . . Indirectly . | . . . . . . . Trap Hack Attempts . | . . . . . . . Triggered . | . . . . . . . Disarmed . | . . . . . . . Reprogrammed . | . . . . . . . Reused . | . . . . . . . Traps Extracted . | . . . . . . . Installed . | . . . . . . . Triggered . | . . . . . . . Machines | -11 -10 -10 -9 -9 -9 -8 ---------- Run | Yrd Mat Min Mat Min Exi Min Machines Disabled 7 | . 1 . . . 6 . Max in Single Turn 1 | . 1 . . . 1 . Machines Repaired . | . . . . . . . Machines Dismantled . | . . . . . . . Machines Sabotaged . | . . . . . . . Overloaded Fab Kills . | . . . . . . . Hacking | -11 -10 -10 -9 -9 -9 -8 --------- Run | Yrd Mat Min Mat Min Exi Min Machines Accessed 10 | . . . 8 . 2 . Terminals 7 | . . . 7 . . . Fabricators . | . . . . . . . Repair Stations . | . . . . . . . Recycling Units 1 | . . . 1 . . . Scanalyzers . | . . . . . . . Garrison Access . | . . . . . . . Total Hacks 20 | . . . 18 . 2 . Successful 10 | . . . 8 . 2 . Failed 10 | . . . 10 . . . Catastrophic 5 | . . . 5 . . . Database Lockouts . | . . . . . . . Manual 14 | . . . 13 . 1 . Terminals 17 | . . . 17 . . . Fabricators . | . . . . . . . Repair Stations . | . . . . . . . Recycling Units 1 | . . . 1 . . . Scanalyzers . | . . . . . . . Garrison Access . | . . . . . . . Terminal Hacks 5 | . . . 3 . 2 . Record 1 | . . . . . 1 . Branch Access Points 1 | . . . 1 . . . Registered Components 1 | . . . 1 . . . Zone Layout 1 | . . . 1 . . . Proto ID Catalog 1 | . . . . . 1 . Fabricator Hacks . | . . . . . . . Repair Station Hacks . | . . . . . . . Recycling Unit Hacks 1 | . . . 1 . . . Retrieve Components 1 | . . . 1 . . . Scanalyzer . | . . . . . . . Garrison Access Hacks . | . . . . . . . Unauthorized Hacks 4 | . . . 4 . . . Terminals 4 | . . . 4 . . . Skim 4 | . . . 4 . . . Fabricators . | . . . . . . . Repair Stations . | . . . . . . . Recycling Units . | . . . . . . . Scanalyzers . | . . . . . . . Garrison Access . | . . . . . . . Data Cores Recovered . | . . . . . . . Used . | . . . . . . . Hacking Detections 7 | . . . 7 . . . Full Trace Events . | . . . . . . . Feedback Events . | . . . . . . . Feedback Blocked . | . . . . . . . Robot Schematics Acquired . | . . . . . . . Robots Built . | . . . . . . . Authchips . | . . . . . . . Time . | . . . . . . . Total Robot Build Rating . | . . . . . . . Part Schematics Acquired . | . . . . . . . Parts Built . | . . . . . . . Authchips . | . . . . . . . Time . | . . . . . . . Total Part Build Rating . | . . . . . . . Parts Repaired . | . . . . . . . Time . | . . . . . . . Parts Recycled . | . . . . . . . Recycled Matter . | . . . . . . . Retrieved Matter . | . . . . . . . Retrieved Components 2 | . . . 2 . . . Parts Scanalyzed . | . . . . . . . Part Schematics Acquired . | . . . . . . . Parts Damaged . | . . . . . . . Bothacking | -11 -10 -10 -9 -9 -9 -8 ------------ Run | Yrd Mat Min Mat Min Exi Min Used RIF Installer . | . . . . . . . Robots Hacked . | . . . . . . . Non-combat . | . . . . . . . Combat . | . . . . . . . Robot Hacks Applied . | . . . . . . . Relay Couplers Released . | . . . . . . . Fabnet Peak Effective % . | . . . . . . . Robots Rewired . | . . . . . . . Allies Hacked . | . . . . . . . Hacks Repelled . | . . . . . . . Allies | -11 -10 -10 -9 -9 -9 -8 -------- Run | Yrd Mat Min Mat Min Exi Min Total Allies . | . . . . . . . Largest Group . | . . . . . . . Highest-Rated Group . | . . . . . . . Highest-Rated Ally . | . . . . . . . Total Orders . | . . . . . . . Ally Attacks . | . . . . . . . Total Damage . | . . . . . . . Kills . | . . . . . . . Allies Corrupted . | . . . . . . . Allies Melted . | . . . . . . . Intel | -11 -10 -10 -9 -9 -9 -8 ------- Run | Yrd Mat Min Mat Min Exi Min Active Infowar (turns) 211 | 23 188 . . . . . Seismic 211 | 23 188 . . . . . Robot Analysis Total . | . . . . . . . Derelict Logs Recovered 2 | . . 1 . 1 . . Drone Launches . | . . . . . . . Drone Recoveries . | . . . . . . . Exploration | -11 -10 -10 -9 -9 -9 -8 ------------- Run | Yrd Mat Min Mat Min Exi Min Turns Passed 5461 | 113 408 315 1498 810 2209 108 Spaces Moved 2076 | 68 180 175 585 288 752 28 Core 27 | 27 . . . . . . Treads 1985 | 41 116 175 585 288 752 28 Legs . | . . . . . . . Wheels 64 | . 64 . . . . . Hover . | . . . . . . . Flight . | . . . . . . . Fastest Speed 50 | 50 90 160 160 240 240 240 Average Speed 214 | 116 135 160 218 240 240 240 Slowest Speed 240 | 160 160 160 240 240 240 240 Overloaded Moves . | . . . . . . . Propulsion Burnouts . | . . . . . . . Robots Hopped . | . . . . . . . Potential Cave-ins . | . . . . . . . Cave-ins Triggered . | . . . . . . . Exploration Rate (%) 38 | 4 38 45 37 44 85 14 Regions Visited 6 Branch Regions 4 Pre-discovered Areas 1 | . . . . . 1 . Known Exits Taken 1 | . . . 1 . . . Unknown Exits Taken 5 | 1 1 1 . 1 1 . Scrap Searched 1 | . . . . 1 . . Spaces Dug . | . . . . . . . Terrain Destroyed 18 | . . . . . 15 3 Melee . | . . . . . . . Projectile 3 | . . . . . . 3 AOE 15 | . . . . . 15 . Terrain Rammed . | . . . . . . . Walls Destroyed . | . . . . . . . Machines Disabled . | . . . . . . . Actions | -11 -10 -10 -9 -9 -9 -8 --------- Run | Yrd Mat Min Mat Min Exi Min Total 2692 | 93 290 188 736 378 961 46 Wait 198 | . 41 2 57 63 34 1 Move 2070 | 67 179 174 584 287 751 28 Hop . | . . . . . . . Pick Up 86 | 14 13 . 29 1 29 . Fast Attach 2 | . . 1 1 . . . Attach 40 | 7 6 . 6 4 12 5 Detach 2 | . . . . 2 . . Swap 21 | . 4 . 5 2 10 . Drop 35 | . 7 . 9 2 17 . Fire 235 | 5 40 11 42 17 108 12 Melee . | . . . . . . . Ram . | . . . . . . . Kick . | . . . . . . . Crush 3 | . . . 3 . . . Escape Stasis . | . . . . . . . Rewire . | . . . . . . . Trap . | . . . . . . . Miscellaneous . | . . . . . . . Route ------- -11/Scrapyard -10/Materials (discovered 2 exits: *Mat / [*Min]) -10/Mines -9/Materials (discovered 4 exits: *Min x2 / *Sto x2) -9/Mines (discovered 2 exits: [*Mat] / *Exi) -9/Exiles -8/Mines History --------- Turn | Location | Event 6 | -11/Scrapyard | Discovered new exit (range 13) 114 | -11/Scrapyard | Entered Materials 115 | -10/Materials | Met a group of wandering Federalists 182 | -10/Materials | Discovered new exit (range 16) 207 | -10/Materials | Discovered new exit (range 8) 310 | -10/Materials | Build established: Mutant 325 | -10/Materials | Core integrity fell below 50% 365 | -10/Materials | Core integrity fell below 20% 376 | -10/Materials | Lost 6 parts (1p1n1u3w) 522 | -10/Materials | Entered Mines 813 | -10/Mines | Discovered new exit (range 16) 837 | -10/Mines | Entered Materials 837 | -9/Materials | Evolved 2 slots: Propulsion x1, Utility x1 839 | -9/Materials | Discovered new exit (range 14) 917 | -9/Materials | Identified exit to Mines 917 | -9/Materials | Identified exit to Storage 1027 | -9/Materials | Lost 3 parts (1u2w) 1776 | -9/Materials | Destroyed 8 combat bots 2335 | -9/Materials | Entered Mines 2362 | -9/Mines | Learned 2 Materials zone layouts 2480 | -9/Mines | Discovered new exit (range 8) 2951 | -9/Mines | Build established: Scavenger-Mutant 2957 | -9/Mines | Assembled infested the area 3036 | -9/Mines | Lost 3 parts (1p1n1u) 3099 | -9/Mines | Met 8R-AWN 3129 | -9/Mines | Discovered new exit (range 5) 3145 | -9/Mines | Entered Exiles 3211 | -9/Exiles | Welcomed by 8R-AWN 3249 | -9/Exiles | Met EX-HEX 3296 | -9/Exiles | Build established: Mutant 3374 | -9/Exiles | Met EX-DEC 3413 | -9/Exiles | Learned location of Zion (-7) 3688 | -9/Exiles | Met EX-BIN 3722 | -9/Exiles | Aligned with FarCom system 3724 | -9/Exiles | Given EX-Vault access code 3780 | -9/Exiles | Opened EX-Vault 3796 | -9/Exiles | Found 0b10 Alert Chip 3805 | -9/Exiles | Found Supersonic Drone Bay 3856 | -9/Exiles | Warned to stay clear of 0b10 Research branches 3953 | -9/Exiles | Attacked by the Exiles 4073 | -9/Exiles | Core integrity fell below 50% 4167 | -9/Exiles | Destroyed 8R-AWN 4168 | -9/Exiles | Lost 7 parts (2n3u2w) 4173 | -9/Exiles | Found Prototype Ballistic Gun 4434 | -9/Exiles | Destroyed EX-HEX 4611 | -9/Exiles | Destroyed EX-BIN 4627 | -9/Exiles | Destroyed EX-DEC 4668 | -9/Exiles | Found Deploy-a-Sentry 5039 | -9/Exiles | Identified 8R-AWN's Boregun 5048 | -9/Exiles | Found Lightpack 2.0 5325 | -9/Exiles | Discovered new exit (range 12) 5335 | -9/Exiles | Build established: Scavenger-Mutant 5354 | -9/Exiles | Stole four prototypes: Lightpack 2.0, 0b10 Alert Chip, Supersonic Drone Bay, Deploy-a-Sentry 5354 | -9/Exiles | Entered Mines 5422 | -8/Mines | NK-0LA came to Exiles' defense 5437 | -8/Mines | System corruption reached 10% 5443 | -8/Mines | Core integrity fell below 20% 5462 | -8/Mines | Destroyed by NK-0LA with NK-0LA's Tesla Doomcannon Last Messages --------------- 05379_ System corrupted: Component data lost. 05411_ System corrupted: Matter fused (-5). 05422_ NK-0LA: "I came as fast as I could... Wait, it was you!" 05423_ HV Slug penetrates Wall. 05426_ Core Shielding destroyed. 05429_ HV Slug penetrates Wall. 05435_ HV Slug penetrates NK-0LA. 05435_ HV Slug penetrates Wall. 05440_ Med. Armor Plating destroyed. 05441_ System corrupted: 8R-AWN's Boregun jammed. 05442_ Lgt. Treads destroyed. 05442_ 8R-AWN's Boregun destroyed. 05444_ Cold Fusion Reactor destroyed. 05446_ HY QCHUIBDFZOHJZWLB>7OVPZM>F IA 05446_ Imp. Treads destroyed. 05448_ Imp. Assault Rifle destroyed. 05455_ System corrupted: Imp. Assault Rifle jammed. 05456_ Mak. Leg destroyed. 05458_ Lgt. Treads destroyed. 05462_ System corrupted: Component data lost. Map ----- +----------------------------------------------------+ | ???????????????????????????????????????????? | | ???????????????????????????????????????????? | | ???????????????????????????????????????????? | | ???????????????????????????????????????????? | | ???????????????????????#???????????????????? | | ???????????????????????# ??????????????????? | | ???????????????????????# ??????????????????? | | ???????????????????????# ??????????????????? | | ??????????????# ??????# ??????????????????? | | ??????????????# ?????# ??????????????????? | | ?????????????## ????# ??????????????????? | | ?????????????# #??## #?????????????????? | | ?????????????# ### ;#????????????????? | | ?????????????# ##########???????? | | ?????????????# #???????? | | ??????????????# t #???????? | | ??????????????##### #### ## #???????? | | ??????????????????## ## #?# ## #???????? | | ???????????????????##??## ;?# ## #???????? | | ???????????????????????## ### ## #???????? | | ??????????????????????## ## ## #???????? | | ??????????????????????# x ## #???????? | | ??????????????????????# ###### ###?????? | | ????????????????????#### ##??## ##????? | | ????????????????????# #???# #????? | | ????????????????????# ## @#???# #????? | | ????????????????????#??# #???## #????? | | ???????????????????????# ????## ##????? | | ??????????????????????? ?????## ##?????? | | ?????????????????????? ??????###??????? | | ????????????????????? #???????????????? | | ????????????????????? # #???????????????? | | ????????????????????# ###? #???????????????? | | ????????????????????# ???? #???????????????? | | ????????????????????# ???? #???????????????? | | ????????????????????#????? ???????????????? | | ?????????????????????????? "???????????????? | | ?????????????????????????? "???????????????? | | ?????????????????????????? "???????????????? | | ???????????????????????????????????????????? | | ???????????????????????????????????????????? | | ???????????????????????????????????????????? | | ???????????????????????????????????????????? | | ???????????????????????????????????????????? | | ???????????????????????????????????????????? | | | | | | | | | | | +----------------------------------------------------+ Best States ------------- Heat Dissipation 38 Energy Generation 17 Energy Capacity 250 Matter Stores 300 Matter Capacity 300 Sight Range 16 Terrain Scan Density 10 Armor Coverage 225 Core Shielding 20 Evasion (%) 50 Recoil Reduction 3 Item Schematics ----------------- None Robot Schematics ------------------ None Fabricated ------------ Nothing Repaired ---------- Nothing Alien Tech Used ----------------- None Achievements -------------- None Challenges ------------ None Game ------ Seed PitchforkFieldKinecellerator Manual? 0 Play Time 00:24:34 Cumulative 308.8 hours Start 2025.09.20 @ 00:15:11 End 2025.09.20 @ 02:52:23 Sessions 2 Manual Loads 0 Difficulty Rogue Special Mode None Game No. 427 Rogue 427 Adventurer 0 Explorer 0 Win Type - Total 10 Types 5/0/1/2/1/0/1/0/0/0 Lore% 86 Gallery% 81 Achievement% 67 Wizard Run 0 Options --------- Layout 0 ASCII 0 Keyboard 0 Movement Mouse Keybinds 0 Fullscreen 1 Font 24/Tamsyn Map View 76x50 Zoom Use 0% Tactical HUD 1 Map Filters NONE Filters NONE Steam 1 RUN: b8207aa6-77e5-4416-9404-f8536a5bd068